fUSD/lending_fUSD_20260131
["ID","MTS","AMOUNT","RATE_DAILY","PERIOD"]
[404131298,1769871039155,-1837.56,0.00018,2]
[404131301,1769871039171,-30011.08762746,0.00018,2]
[404131303,1769871039183,-1617.8938487,0.00018,2]
[404131306,1769871039194,-909.02165042,0.00018,2]
[404131308,1769871039206,-1098.79570465,0.00018,2]
[404131310,1769871039217,-1616.70345335,0.00018,2]
[404131312,1769871039229,-99069.0000001,0.00018,2]
[404131448,1769871040466,-28154.4288923,0.00018,2]
[404131450,1769871040477,-469.74757969,0.00018,2]
[404131472,1769871040822,-5584.61337615,0.00018,2]
[404131476,1769871040849,-813.31280672,0.00018,2]
[404131478,1769871040860,-4050.0,0.00018,2]
[404131480,1769871040871,-8095.0,0.00018,2]
[404131482,1769871040882,-491.46877472,0.00018,2]
[404131484,1769871040893,-1361.66500003,0.00018,2]
[404131487,1769871040904,-437.7024,0.00018,2]
[404131489,1769871040915,-1462.50267413,0.00018,2]
[404131491,1769871040926,-539.63574858,0.00018,2]
[404131507,1769871041035,-20086.5899506,0.00018,2]
[404131814,1769871044205,-1624.4,0.00018,2]
[404131847,1769871045287,-126250.0,0.00018,2]
[404131859,1769871046338,-151.0,0.00016409,2]
[404131860,1769871046351,-453.9229497,0.00018,2]
[404131861,1769871046472,-938.57415772,0.00018,2]
[404131864,1769871046611,-1304.55991073,0.00018,2]
[404131865,1769871046750,-151.0,0.00016409,2]
[404131866,1769871046762,-2787.74215668,0.00018,2]
[404131867,1769871046774,-905.01366406,0.00018,2]
[404131868,1769871046796,-1623.7,0.00018,2]
[404131875,1769871139843,-500.0,0.0004346,120]
[404131876,1769871139874,-1015.62811156,0.0004346,30]
[404131877,1769871139905,-1103.0,0.0004346,30]
[404131878,1769871139937,-1103.0,0.0004346,30]
[404131879,1769871139967,-1103.0,0.0004346,30]
[404131880,1769871139997,-1103.0,0.0004346,30]
[404131881,1769871140032,-1103.0,0.0004346,30]
[404131882,1769871140060,-25615.58954386,0.0004346,30]
[404131883,1769871140088,-200605.08735821,0.0004346,30]
[404131884,1769871140116,-54714.1640506,0.0004346,30]
[404131885,1769871140147,-9436.0,0.0004346,120]
[404131886,1769871140174,-2021.13373656,0.0004346,120]
[404131887,1769871140202,-747.29633016,0.0004346,30]
[404131888,1769871140230,-202.62,0.0004346,88]
[404131889,1769871140258,-202.92,0.0004346,88]
[404131890,1769871140285,-198.69,0.0004346,88]
[404131891,1769871140312,-199.03,0.0004346,88]
[404131892,1769871140340,-203.21,0.0004346,88]
[404131893,1769871140366,-400.0,0.0004346,30]
[404131894,1769871140394,-400.0,0.0004346,30]
[404131895,1769871140426,-400.0,0.0004346,30]
[404131896,1769871140455,-400.0,0.0004346,30]
[404131897,1769871140482,-400.0,0.0004346,30]
[404131898,1769871140514,-400.0,0.0004346,30]
[404131899,1769871140542,-400.0,0.0004346,30]
[404131900,1769871140571,-400.0,0.0004346,30]
[404131901,1769871140600,-400.0,0.0004346,30]
[404131902,1769871140628,-400.0,0.0004346,30]
[404131903,1769871140657,-400.0,0.0004346,30]
[404131904,1769871140688,-400.0,0.0004346,30]
[404131905,1769871140716,-400.0,0.0004346,30]
[404131906,1769871140744,-400.0,0.0004346,30]
[404131907,1769871140773,-400.0,0.0004346,30]
[404131908,1769871140802,-400.0,0.0004346,30]
[404131909,1769871140831,-427.57221181,0.0004346,30]
[404131910,1769871140861,-1427.28225525,0.0004346,120]
[404131911,1769871140889,-800.0,0.0004346,120]
[404131912,1769871140918,-800.0,0.0004346,120]
[404131913,1769871140947,-800.0,0.0004346,120]
[404131914,1769871140978,-800.0,0.0004346,120]
[404131915,1769871141006,-800.0,0.0004346,120]
[404131916,1769871141034,-800.0,0.0004346,120]
[404131917,1769871141062,-800.0,0.0004346,120]
[404131918,1769871141091,-576.62590404,0.0004346,120]
[404131919,1769871141118,-150.0,0.0004346,30]
[404131920,1769871141147,-150.0,0.0004346,30]
[404131921,1769871180665,-166.66,0.00022322,30]
[404131922,1769871180702,-746.82,0.00027397,30]
[404131923,1769871180734,-1000.0,0.0003,120]
[404131924,1769871180766,-159.83,0.000304,30]
[404131925,1769871180799,-205.46,0.00030411,120]
[404131926,1769871180835,-200.0,0.00032,120]
[404131927,1769871180872,-746.82,0.00032232,30]
[404131928,1769871180901,-1015.73459,0.000325,120]
[404131929,1769871180931,-200.0,0.00034,120]
[404131930,1769871180961,-404.93,0.00035,30]
[404131931,1769871180992,-1999.0,0.00035616,120]
[404131932,1769871181020,-520.73,0.00036,30]
[404131933,1769871181050,-200.0,0.00036,120]
[404131934,1769871181080,-1999.0,0.00036712,120]
[404131935,1769871181108,-520.73,0.0003672,30]
[404131936,1769871181138,-571.82,0.00037067,120]
[404131937,1769871181187,-520.73,0.0003744,30]
[404131938,1769871181221,-154.38,0.00037448,91]
[404131939,1769871181252,-1999.0,0.00037808,120]
[404131940,1769871181289,-200.0,0.00038,120]
[404131941,1769871181320,-520.73,0.0003816,30]
[404131942,1769871181351,-1000.0,0.00038356,120]
[404131943,1769871181381,-153.106172,0.00038356,120]
[404131944,1769871181409,-151.0,0.00038356,120]
[404131945,1769871181441,-151.0,0.00038356,120]
[404131946,1769871181472,-151.0,0.00038356,120]
[404131947,1769871181500,-151.0,0.00038356,120]
[404131948,1769871181531,-176.596384,0.00038356,120]
[404131949,1769871181560,-151.0,0.00038356,30]
[404131950,1769871181588,-154.833866,0.00038356,30]
[404131951,1769871181621,-151.0,0.00038356,120]
[404131952,1769871181650,-151.0,0.00038356,120]
[404131953,1769871181679,-151.0,0.00038356,120]
[404131954,1769871181709,-195.854892,0.00038356,120]
[404131955,1769871181739,-156.034119,0.00038356,120]
[404131956,1769871181768,-201.45534,0.00038356,120]
[404131957,1769871181799,-229.184889,0.00038356,120]
[404131958,1769871181832,-151.0,0.00038356,120]
[404131959,1769871181863,-151.0,0.00038356,120]
[404131960,1769871181901,-249.099601,0.00038356,120]
[404131961,1769871181930,-249.099601,0.00038356,120]
[404131962,1769871182192,-151.0,0.00038356,120]
[404131963,1769871182224,-249.099601,0.00038356,120]
[404131964,1769871182255,-151.0,0.00038356,120]
[404131965,1769871182286,-249.099601,0.00038356,120]
[404131966,1769871182315,-183.930977,0.00038356,120]
[404131967,1769871182347,-183.930977,0.00038356,120]
[404131968,1769871182376,-183.930977,0.00038356,120]
[404131969,1769871182406,-183.930977,0.00038356,120]
[404131970,1769871182438,-151.0,0.00038356,120]
[404131971,1769871182467,-151.0,0.00038356,120]
[404131972,1769871182496,-272.243705,0.00038356,120]
[404131973,1769871182526,-151.0,0.00038356,120]
[404131974,1769871182556,-176.634894,0.00038356,120]
[404131975,1769871182587,-151.0,0.00038356,120]
[404131976,1769871182616,-151.0,0.00038356,120]
[404131977,1769871182645,-151.0,0.00038356,120]
[404131978,1769871182674,-214.530512,0.00038356,120]
[404131979,1769871182703,-151.0,0.00038356,120]
[404131980,1769871182734,-713.4058,0.000386,60]
[404131981,1769871182764,-150.0,0.0003861,30]
[404131982,1769871182794,-150.0,0.0003861,30]
[404131983,1769871182824,-1580.04,0.000387,30]
[404131984,1769871182855,-520.73,0.0003888,120]
[404131985,1769871182888,-1999.0,0.00038904,120]
[404131986,1769871182918,-210.204668,0.00039041,120]
[404131987,1769871182949,-210.204668,0.00039041,120]
[404131988,1769871182983,-210.204668,0.00039041,120]
[404131989,1769871183013,-210.204668,0.00039041,120]
[404131990,1769871183049,-6026.45302578,0.000391,120]
[404131991,1769871183080,-1000.0,0.00039178,120]
[404131992,1769871183113,-520.73,0.000396,120]
[404131993,1769871183151,-1580.04,0.000397,30]
[404131994,1769871183184,-1277.6,0.00039979,120]
[404131995,1769871183216,-153.0,0.0004,120]
[404131996,1769871183247,-152.0,0.0004,120]
[404131997,1769871183278,-1000.0,0.0004,120]
[404131998,1769871183309,-200.0,0.0004,120]
[404131999,1769871183339,-278.65502876,0.0004,120]
[404132000,1769871183372,-775.87100467,0.0004,120]
[404132001,1769871183402,-300.312239,0.00040212,99]
[404132002,1769871183435,-520.73,0.0004032,120]
[404132003,1769871183466,-152.0,0.000406,120]
[404132004,1769871183497,-1277.6,0.00040616,120]
[404132005,1769871183528,-1472.977,0.0004073,59]
[404132006,1769871183558,-153.0,0.000408,120]
[404132007,1769871183589,-1000.0,0.00040821,120]
[404132008,1769871183620,-789.28,0.00041096,120]
[404132009,1769871183651,-500.0,0.00041096,60]
[404132010,1769871183681,-500.0,0.00041096,60]
[404132011,1769871183712,-785.0,0.00041096,60]
[404132012,1769871183742,-500.0,0.00041096,60]
[404132013,1769871183771,-150.0,0.00041096,60]
[404132014,1769871183804,-150.0,0.00041096,60]
[404132015,1769871183836,-150.0,0.00041096,60]
[404132016,1769871183866,-150.0,0.00041096,60]
[404132017,1769871183896,-200.0,0.00041096,60]
[404132018,1769871183925,-150.0,0.00041096,60]
[404132019,1769871183955,-150.0,0.00041096,60]
[404132020,1769871183987,-150.98632457,0.00041096,60]
[404132021,1769871184016,-151.19522173,0.00041096,60]
[404132022,1769871184044,-150.0,0.00041096,60]
[404132023,1769871184073,-151.8586155,0.00041096,60]
[404132024,1769871184102,-151.24448466,0.00041096,60]
[404132025,1769871184131,-150.0,0.00041116,30]
[404132026,1769871184162,-150.0,0.00041149,30]
[404132027,1769871184191,-150.0,0.00041149,30]
[404132028,1769871184219,-500.0,0.00041151,60]
[404132029,1769871184249,-500.0,0.00041151,60]
[404132030,1769871184277,-785.0,0.00041151,60]
[404132031,1769871184305,-500.0,0.00041151,60]
[404132032,1769871184334,-150.0,0.00041151,60]
[404132033,1769871184364,-150.0,0.00041151,60]
[404132034,1769871184393,-150.0,0.00041151,60]
[404132035,1769871184423,-150.0,0.00041151,60]
[404132036,1769871184457,-150.0,0.00041151,60]
[404132037,1769871184487,-150.0,0.00041151,60]
[404132038,1769871184520,-500.0,0.00041206,60]
[404132039,1769871184551,-500.0,0.00041206,60]
[404132040,1769871184584,-785.0,0.00041206,60]
[404132041,1769871184614,-500.0,0.00041206,60]
[404132042,1769871184644,-200.0,0.00041206,60]
[404132043,1769871184675,-200.0,0.00041206,60]
[404132044,1769871184705,-200.0,0.00041206,60]
[404132045,1769871184737,-153.0,0.00041206,60]
[404132046,1769871184768,-200.0,0.00041206,60]
[404132047,1769871184799,-1277.6,0.00041253,120]
[404132048,1769871184829,-500.0,0.0004126,60]
[404132049,1769871184858,-649.3587587,0.0004126,60]
[404132050,1769871184890,-785.0,0.0004126,60]
[404132051,1769871184921,-500.0,0.0004126,60]
[404132052,1769871184951,-150.0,0.00041262,30]
[404132053,1769871184984,-150.0,0.00041274,30]
[404132054,1769871185013,-150.0,0.00041293,30]
[404132055,1769871185042,-150.0,0.00041293,30]
[404132056,1769871185331,-152.0,0.000413,120]
[404132057,1769871185361,-500.0,0.00041315,60]
[404132058,1769871185391,-500.0,0.00041315,60]
[404132059,1769871185420,-785.0,0.00041315,60]
[404132060,1769871185463,-150.0,0.00041346,30]
[404132061,1769871185493,-500.0,0.0004137,60]
[404132062,1769871185523,-500.0,0.0004137,60]
[404132063,1769871185553,-785.0,0.0004137,60]
[404132064,1769871185584,-150.0,0.00041399,30]
[404132065,1769871185616,-311.0,0.000414,120]
[404132066,1769871185648,-552.76922789,0.00041425,60]
[404132067,1769871185677,-785.0,0.00041425,60]
[404132068,1769871185707,-150.0,0.00041461,30]
[404132069,1769871185742,-150.0,0.00041461,30]
[404132070,1769871185771,-785.0,0.0004148,60]
[404132071,1769871185801,-153.0,0.000415,120]
[404132072,1769871185833,-150.0,0.00041523,30]
[404132073,1769871185864,-785.0,0.00041534,60]
[404132074,1769871185893,-150.0,0.00041576,30]
[404132075,1769871185921,-785.0,0.00041589,60]
[404132076,1769871185949,-193.50180592,0.00041621,69]
[404132077,1769871185976,-150.0,0.00041629,30]
[404132078,1769871186004,-150.0,0.00041629,30]
[404132079,1769871186032,-1000.0,0.00041643,120]
[404132080,1769871186060,-785.0,0.00041644,60]
[404132081,1769871186088,-150.0,0.00041648,30]
[404132082,1769871186117,-150.0,0.00041659,30]
[404132083,1769871186148,-785.0,0.00041699,60]
[404132084,1769871186176,-500.0,0.00041725,60]
[404132085,1769871186205,-785.0,0.00041754,60]
[404132086,1769871186235,-150.0,0.00041773,30]
[404132087,1769871186263,-150.0,0.00041773,30]
[404132088,1769871186295,-4667.77,0.00041779,120]
[404132089,1769871186323,-150.0,0.00041805,30]
[404132090,1769871186351,-785.0,0.00041808,60]
[404132091,1769871186378,-785.0,0.00041863,60]
[404132092,1769871186406,-150.0,0.00041897,30]
[404132093,1769871186438,-150.0,0.00041897,30]
[404132094,1769871186466,-152.0,0.000419,120]
[404132095,1769871186496,-746.82,0.00041902,120]
[404132096,1769871186526,-150.0,0.00041918,120]
[404132097,1769871186555,-785.0,0.00041918,60]
[404132098,1769871186584,-150.0,0.00041964,30]
[404132099,1769871186614,-150.0,0.00041964,30]
[404132100,1769871186646,-785.0,0.00041973,60]
[404132101,1769871186678,-1000.0,0.00041999,60]
[404132102,1769871186710,-500.0,0.00041999,60]
[404132103,1769871186741,-21435.6338022,0.00042,120]
[404132104,1769871186773,-197.98,0.00042,120]
[404132105,1769871186805,-200.0,0.00042,120]
[404132106,1769871186834,-150.0,0.00042022,30]
[404132107,1769871186863,-785.0,0.00042028,60]
[404132108,1769871186894,-150.0,0.00042035,30]
[404132109,1769871186925,-150.0,0.00042056,30]
[404132110,1769871186955,-785.0,0.00042082,60]
[404132111,1769871186986,-150.0,0.00042084,30]
[404132112,1769871187016,-785.0,0.00042137,60]
[404132113,1769871187047,-150.0,0.00042147,30]
[404132114,1769871187078,-150.0,0.00042188,30]
[404132115,1769871187108,-150.0,0.00042188,30]
[404132116,1769871187141,-785.0,0.00042192,60]
[404132117,1769871187173,-785.0,0.00042247,60]
[404132118,1769871187204,-150.0,0.00042265,30]
[404132119,1769871187236,-150.0,0.00042271,30]
[404132120,1769871187267,-500.0,0.00042273,60]
[404132121,1769871187297,-8898.0,0.00042297,30]
[404132122,1769871187328,-153.0,0.000423,120]
[404132123,1769871187359,-150.0,0.000423,30]
[404132124,1769871187390,-150.0,0.000423,30]
[404132125,1769871187421,-785.0,0.00042301,60]
[404132126,1769871187456,-150.0,0.00042334,30]
[404132127,1769871187491,-802.06545537,0.00042356,60]
[404132128,1769871187526,-150.0,0.00042396,30]
[404132129,1769871187559,-150.0,0.00042396,30]
[404132130,1769871187591,-400.0,0.00042421,120]
[404132131,1769871187624,-498.18638828,0.00042421,120]
[404132132,1769871187655,-698.36,0.00042438,120]
[404132133,1769871187688,-500.0,0.00042438,120]
[404132134,1769871187719,-150.0,0.00042453,30]
[404132135,1769871187750,-1000.0,0.00042465,120]
[404132136,1769871187781,-150.0,0.00042495,30]
[404132137,1769871187812,-1580.04,0.000425,30]
[404132138,1769871187843,-152.0,0.000425,120]
[404132139,1769871187874,-150.0,0.00042521,30]
[404132140,1769871187904,-1000.0,0.00042547,60]
[404132141,1769871187934,-698.36,0.00042575,120]
[404132142,1769871187964,-500.0,0.00042575,120]
[404132143,1769871187993,-293.176,0.00042591,30]
[404132144,1769871188023,-150.0,0.00042636,30]
[404132145,1769871188053,-150.0,0.00042636,30]
[404132146,1769871188084,-500.0,0.0004264,30]
[404132147,1769871188115,-150.0,0.00042645,30]
[404132148,1769871188144,-150.0,0.00042708,30]
[404132149,1769871188172,-698.36,0.00042712,120]
[404132150,1769871188421,-500.0,0.00042712,120]
[404132151,1769871188454,-150.0,0.00042724,30]
[404132152,1769871188486,-8898.0,0.00042733,30]
[404132153,1769871188520,-1730.37,0.0004275,120]
[404132154,1769871188550,-150.0,0.0004277,30]
[404132155,1769871188580,-150.0,0.0004277,30]
[404132156,1769871188611,-500.0,0.00042821,60]
[404132157,1769871188642,-698.36,0.00042849,120]
[404132158,1769871188673,-500.0,0.00042849,120]
[404132159,1769871188710,-150.0,0.00042849,30]
[404132160,1769871188743,-1582.01198,0.0004285,120]
[404132161,1769871188776,-1582.01199,0.0004285,120]
[404132162,1769871188809,-1582.01198,0.0004285,120]
[404132163,1769871188840,-1582.01198,0.0004285,120]
[404132164,1769871188873,-1582.01198,0.0004285,120]
[404132165,1769871188905,-150.0,0.00042895,30]
[404132166,1769871188936,-2000.0,0.00042903,120]
[404132167,1769871188967,-2000.0,0.00042903,120]
[404132168,1769871188998,-150.0,0.00042954,30]
[404132169,1769871189028,-150.0,0.00042972,30]
[404132170,1769871189059,-150.0,0.00042972,30]
[404132171,1769871189090,-698.36,0.00042986,120]
[404132172,1769871189120,-500.0,0.00042986,120]
[404132173,1769871189149,-172.0,0.00043,90]
[404132174,1769871189180,-150.0,0.0004302,30]
[404132175,1769871189212,-150.0,0.0004302,30]
[404132176,1769871189242,-1000.0,0.00043095,60]
[404132177,1769871189271,-500.0,0.00043095,60]
[404132178,1769871189302,-306.47,0.00043097,120]
[404132179,1769871189331,-153.0,0.000431,120]
[404132180,1769871189360,-152.0,0.000431,120]
[404132181,1769871189389,-698.36,0.00043123,120]
[404132182,1769871189417,-500.0,0.00043123,120]
[404132183,1769871189450,-150.0,0.00043144,30]
[404132184,1769871189479,-800.0,0.00043151,120]
[404132185,1769871189509,-600.0,0.00043151,120]
[404132186,1769871189538,-537.52340928,0.00043151,120]
[404132187,1769871189567,-8898.0,0.00043169,30]
[404132188,1769871189597,-150.0,0.00043184,30]
[404132189,1769871189627,-207.87,0.000432,63]
[404132190,1769871189657,-150.0,0.00043207,30]
[404132191,1769871189688,-2608.7456,0.0004322,30]
[404132192,1769871189717,-150.0,0.00043246,30]
[404132193,1769871189748,-151.0,0.00043247,120]
[404132194,1769871189781,-886558.9033,0.0004325,30]
[404132195,1769871189812,-151.0,0.0004325,120]
[404132196,1769871189842,-151.0,0.0004325,120]
[404132197,1769871189872,-188.107716,0.0004325,120]
[404132198,1769871189904,-151.0,0.0004325,120]
[404132199,1769871189933,-151.0,0.0004325,120]
[404132200,1769871189964,-151.0,0.0004325,120]
[404132201,1769871189994,-151.0,0.0004325,120]
[404132202,1769871190024,-156.532702,0.0004325,120]
[404132203,1769871190056,-162.736324,0.0004325,120]
[404132204,1769871190086,-296.443862,0.0004325,120]
[404132205,1769871190115,-151.0,0.0004325,30]
[404132206,1769871190144,-216.524172,0.0004325,120]
[404132207,1769871190174,-177.558912,0.0004325,120]
[404132208,1769871190202,-151.0,0.0004325,120]
[404132209,1769871190231,-151.0,0.0004325,120]
[404132210,1769871190259,-173.37217,0.0004325,120]
[404132211,1769871190289,-250.39783,0.0004325,120]
[404132212,1769871190318,-277.026941,0.0004325,120]
[404132213,1769871190347,-151.0,0.0004325,120]
[404132214,1769871190378,-249.099601,0.0004325,120]
[404132215,1769871190408,-249.099601,0.0004325,120]
[404132216,1769871190444,-151.0,0.0004325,120]
[404132217,1769871190475,-249.099601,0.0004325,120]
[404132218,1769871190507,-151.0,0.0004325,120]
[404132219,1769871190538,-151.0,0.0004325,120]
[404132220,1769871190568,-249.099601,0.0004325,120]
[404132221,1769871190597,-151.0,0.0004325,120]
[404132222,1769871190626,-183.930977,0.0004325,120]
[404132223,1769871190655,-183.930977,0.0004325,120]
[404132224,1769871190684,-183.930977,0.0004325,120]
[404132225,1769871190713,-183.930977,0.0004325,120]
[404132226,1769871190742,-153.038729,0.0004325,120]
[404132227,1769871190770,-151.0,0.0004325,120]
[404132228,1769871190805,-151.0,0.0004325,120]
[404132229,1769871190835,-151.0,0.0004325,120]
[404132230,1769871190864,-151.0,0.0004325,120]
[404132231,1769871190895,-151.0,0.0004325,120]
[404132232,1769871190924,-151.0,0.0004325,120]
[404132233,1769871190954,-151.0,0.0004325,120]
[404132234,1769871190985,-151.0,0.0004325,120]
[404132235,1769871191015,-210.204668,0.0004325,120]
[404132236,1769871191044,-210.204668,0.0004325,120]
[404132237,1769871191073,-151.0,0.0004325,120]
[404132238,1769871191103,-210.204668,0.0004325,120]
[404132239,1769871191133,-210.204668,0.0004325,120]
[404132240,1769871191161,-698.36,0.0004326,120]
[404132241,1769871191188,-500.0,0.0004326,120]
[404132242,1769871191216,-150.0,0.00043269,30]
[404132243,1769871191244,-151.0,0.00043284,120]
[404132244,1769871191272,-278.36328388,0.00043284,120]
[404132245,1769871191489,-3063.34726588,0.00043287,120]
[404132246,1769871191521,-157.55919,0.00043287,120]
[404132247,1769871191552,-157.55919,0.00043287,120]
[404132248,1769871191582,-157.55919,0.00043287,120]
[404132249,1769871191612,-157.55919,0.00043287,120]
[404132250,1769871191645,-157.55919,0.00043287,120]
[404132251,1769871191677,-157.55919,0.00043287,120]
[404132252,1769871191707,-161.696599,0.00043287,120]
[404132253,1769871191738,-161.696599,0.00043287,120]
[404132254,1769871191767,-161.696599,0.00043287,120]
[404132255,1769871191804,-161.696599,0.00043287,120]
[404132256,1769871191836,-161.696599,0.00043287,120]
[404132257,1769871191869,-161.696599,0.00043287,120]
[404132258,1769871191900,-161.696599,0.00043287,120]
[404132259,1769871191931,-161.696599,0.00043287,120]
[404132260,1769871191964,-161.696599,0.00043287,120]
[404132261,1769871191995,-161.696599,0.00043287,120]
[404132262,1769871192024,-155.026136,0.00043287,120]
[404132263,1769871192053,-155.026136,0.00043287,120]
[404132264,1769871192083,-155.026136,0.00043287,120]
[404132265,1769871192113,-155.026136,0.00043287,120]
[404132266,1769871192142,-155.026136,0.00043287,120]
[404132267,1769871192172,-155.026136,0.00043287,120]
[404132268,1769871192202,-155.026136,0.00043287,120]
[404132269,1769871192236,-155.026136,0.00043287,120]
[404132270,1769871192267,-155.026136,0.00043287,120]
[404132271,1769871192297,-155.026136,0.00043287,120]
[404132272,1769871192326,-155.026136,0.00043287,120]
[404132273,1769871192356,-155.026136,0.00043287,120]
[404132274,1769871192386,-155.026136,0.00043287,120]
[404132275,1769871192421,-155.026136,0.00043287,120]
[404132276,1769871192476,-155.026136,0.00043287,120]
[404132277,1769871192519,-155.026136,0.00043287,120]
[404132278,1769871192551,-1000.0,0.00043287,120]
[404132279,1769871192584,-500.0,0.00043287,120]
[404132280,1769871192615,-500.0,0.00043287,120]
[404132281,1769871192644,-500.0,0.00043287,120]
[404132282,1769871192672,-500.0,0.00043287,120]
[404132283,1769871192700,-500.0,0.00043287,120]
[404132284,1769871192731,-500.0,0.00043287,120]
[404132285,1769871192759,-500.0,0.00043287,120]
[404132286,1769871192788,-500.0,0.00043287,120]
[404132287,1769871192817,-500.0,0.00043287,120]
[404132288,1769871192847,-500.0,0.00043287,120]
[404132289,1769871192876,-500.0,0.00043287,120]
[404132290,1769871192904,-500.0,0.00043287,120]
[404132291,1769871192931,-500.0,0.00043287,120]
[404132292,1769871192960,-330.71400123,0.00043287,120]
[404132293,1769871192988,-500.0,0.00043287,120]
[404132294,1769871193017,-500.0,0.00043287,120]
[404132295,1769871193046,-500.0,0.00043287,120]
[404132296,1769871193074,-500.0,0.00043287,120]
[404132297,1769871193101,-500.0,0.00043287,120]
[404132298,1769871193129,-500.0,0.00043287,120]
[404132299,1769871193158,-529.03404655,0.00043287,120]
[404132300,1769871193186,-500.0,0.00043287,120]
[404132301,1769871193216,-500.0,0.00043287,120]
[404132302,1769871193244,-500.0,0.00043287,120]
[404132303,1769871193271,-500.0,0.00043287,120]
[404132304,1769871193298,-500.0,0.00043287,120]
[404132305,1769871193328,-500.0,0.00043287,120]
[404132306,1769871193355,-471.8,0.00043287,120]
[404132307,1769871193382,-500.0,0.00043287,90]
[404132308,1769871193408,-500.0,0.00043287,90]
[404132309,1769871193438,-527.77014704,0.00043287,120]
[404132310,1769871193467,-500.0,0.00043287,120]
[404132311,1769871193495,-500.0,0.00043287,120]
[404132312,1769871193528,-500.0,0.00043287,120]
[404132313,1769871193558,-500.0,0.00043287,120]
[404132314,1769871193586,-500.0,0.00043287,120]
[404132315,1769871193615,-500.0,0.00043287,120]
[404132316,1769871193645,-500.0,0.00043287,120]
[404132317,1769871193674,-500.0,0.00043287,120]
[404132318,1769871193702,-500.0,0.00043287,120]
[404132319,1769871193735,-500.0,0.00043287,120]
[404132320,1769871193765,-500.0,0.00043287,120]
[404132321,1769871193795,-500.0,0.00043287,120]
[404132322,1769871193826,-500.0,0.00043287,120]
[404132323,1769871193857,-500.0,0.00043287,120]
[404132324,1769871193888,-500.0,0.00043287,120]
[404132325,1769871193918,-500.0,0.00043287,120]
[404132326,1769871193947,-500.0,0.00043287,120]
[404132327,1769871193976,-500.0,0.00043287,120]
[404132328,1769871194004,-588.71998276,0.00043287,120]
[404132329,1769871194034,-500.0,0.00043287,120]
[404132330,1769871194065,-500.0,0.00043287,120]
[404132331,1769871194095,-500.0,0.00043287,120]
[404132332,1769871194124,-500.0,0.00043287,120]
[404132333,1769871194153,-419.58626897,0.00043287,120]
[404132334,1769871194182,-500.0,0.00043287,120]
[404132335,1769871194213,-500.0,0.00043287,120]
[404132336,1769871194248,-500.0,0.00043287,120]
[404132337,1769871194279,-500.0,0.00043287,120]
[404132338,1769871194309,-500.0,0.00043287,120]
[404132339,1769871194566,-500.0,0.00043287,120]
[404132340,1769871194598,-500.0,0.00043287,120]
[404132341,1769871194631,-500.0,0.00043287,120]
[404132342,1769871194664,-500.0,0.00043287,120]
[404132343,1769871194696,-500.0,0.00043287,120]
[404132344,1769871194729,-500.0,0.00043287,120]
[404132345,1769871194761,-500.0,0.00043287,120]